[Event "6e festival d'échecs d'Allauch"]
[Site "Allauch, France"]
[Date "2024.08.31"]
[Round "9.7"]
[White "Vernet, Clement"]
[Black "Madi, Chahinez"]
[Result "0-1"]
[TimeControl "1 h 30 min (+30s/coup)"]
[WhiteElo "1474"]
[BlackElo "1668"]

1. d4 {[%clk 01:30:56]} {[%emt 00:00:03]} Nf6 {[%clk 01:30:55]} {[%emt
00:00:07]} 2. Bf4 {[%clk 01:31:14]} {[%emt 00:00:10]} c5 {[%clk 01:30:22]}
{[%emt 00:01:03]} 3. Nf3 {[%clk 01:19:36]} {[%emt 00:12:08]} cxd4 {[%clk
01:29:47]} {[%emt 00:01:05]} 4. Nbd2 {[%clk 01:11:56]} {[%emt 00:08:10]} Nc6
{[%clk 01:27:16]} {[%emt 00:03:02]} 5. Nb3 {[%clk 01:11:02]} {[%emt 00:01:24]}
d6 {[%clk 01:16:05]} {[%emt 00:11:40]} 6. g3 {[%clk 00:58:31]} {[%emt
00:13:01]} e5 {[%clk 01:14:31]} {[%emt 00:02:04]} 7. Bg5 {[%clk 00:58:17]}
{[%emt 00:00:44]} Bf5 {[%clk 01:14:22]} {[%emt 00:00:38]} 8. a3 {[%clk
00:58:12]} {[%emt 00:00:36]} Rc8 {[%clk 01:13:23]} {[%emt 00:01:28]} 9. Rc1
{[%clk 00:57:54]} {[%emt 00:00:49]} h6 {[%clk 01:11:43]} {[%emt 00:02:10]} 10.
Bxf6 {[%clk 00:57:59]} {[%emt 00:00:24]} Qxf6 {[%clk 01:11:48]} {[%emt
00:00:25]} 11. Bg2 {[%clk 00:56:26]} {[%emt 00:01:59]} Be7 {[%clk 01:10:43]}
{[%emt 00:01:38]} 12. O-O {[%clk 00:55:27]} {[%emt 00:01:30]} Qe6 {[%clk
01:09:36]} {[%emt 00:01:35]} 13. Re1 {[%clk 00:42:50]} {[%emt 00:13:10]} Bg5
{[%clk 01:02:38]} {[%emt 00:07:27]} 14. Nbd2 {[%clk 00:38:04]} {[%emt
00:05:17]} e4 {[%clk 00:57:39]} {[%emt 00:05:28]} 15. Nh4 {[%clk 00:33:09]}
{[%emt 00:05:25]} Bxh4 {[%clk 00:52:00]} {[%emt 00:06:10]} 16. gxh4 {[%clk
00:33:03]} {[%emt 00:00:34]} O-O {[%clk 00:35:34]} {[%emt 00:16:57]} 17. Kh1
{[%clk 00:17:25]} {[%emt 00:16:08]} Rce8 {[%clk 00:10:14]} {[%emt 00:25:50]} 18.
Rg1 {[%clk 00:16:31]} {[%emt 00:01:20]} Ne5 {[%clk 00:07:21]} {[%emt 00:03:27]}
19. Qf1 {[%clk 00:14:00]} {[%emt 00:02:54]} e3 {[%emt 00:03:46]} 20. Nf3 {[%clk
00:12:55]} exf2 {[%clk 00:03:51]} {[%emt 00:02:25]} 21. Qxf2 {[%clk 00:12:24]}
{[%emt 00:01:01]} Ng4 {[%clk 00:03:35]} {[%emt 00:00:45]} 22. Qxd4 {[%clk
00:11:36]} {[%emt 00:01:16]} Qc4 {[%clk 00:01:10]} {[%emt 00:02:52]} 23. Rge1
{[%clk 00:11:34]} {[%emt 00:00:38]} Qc8 {[%clk 00:00:38]} {[%emt 00:01:02]} 24.
c3 {[%clk 00:10:32]} {[%emt 00:01:33]} Ne3 {[%clk 00:00:50]} {[%emt 00:00:18]}
25. Qxa7 {[%clk 00:10:27]} {[%emt 00:00:34]} Nxg2 {[%clk 00:01:06]} {[%emt
00:00:14]} 26. Kxg2 {[%clk 00:10:42]} {[%emt 00:00:15]} Bh3+ {[%clk 00:01:22]}
{[%emt 00:00:14]} 27. Kh1 {[%clk 00:10:34]} {[%emt 00:00:38]} Qf5 {[%clk
00:00:49]} {[%emt 00:01:02]} 28. Qf2 {[%clk 00:07:29]} {[%emt 00:03:36]} Qf4
{[%clk 00:00:57]} {[%emt 00:00:22]} 29. Qg3 {[%clk 00:07:26]} {[%emt 00:00:34]}
Qf5 {[%clk 00:01:00]} {[%emt 00:00:25]} 30. Nd4 {[%clk 00:07:12]} {[%emt
00:00:46]} Qd5+ {[%clk 00:01:04]} {[%emt 00:00:23]} 31. Nf3 {[%clk 00:07:11]}
{[%emt 00:00:31]} Qf5 {[%clk 00:00:50]} {[%emt 00:00:45]} 32. Nd4 {[%clk
00:07:05]} {[%emt 00:00:38]} Qd5+ {[%clk 00:01:01]} {[%emt 00:00:17]} 33. Nf3
{[%clk 00:07:22]} {[%emt 00:00:14]} Bf5 {[%clk 00:01:01]} {[%emt 00:00:30]} 34.
Rcd1 {[%clk 00:06:47]} {[%emt 00:01:06]} Qb5 {[%clk 00:01:15]} {[%emt
00:00:14]} 35. Nd4 {[%clk 00:06:56]} {[%emt 00:00:21]} Be4+ {[%clk 00:01:34]}
{[%emt 00:00:13]} 36. Nf3 {[%clk 00:06:17]} {[%emt 00:01:08]} Qxb2 {[%clk
00:01:36]} {[%emt 00:00:29]} 37. Rc1 {[%clk 00:05:38]} {[%emt 00:01:10]} Qxa3
{[%clk 00:01:37]} {[%emt 00:00:22]} 38. c4 {[%clk 00:05:26]} {[%emt 00:00:48]}
Re6 {[%clk 00:01:12]} {[%emt 00:00:53]} 39. Rg1 {[%clk 00:03:54]} {[%emt
00:01:59]} Rg6 {[%clk 00:01:17]} {[%emt 00:00:30]} 40. Qf4 {[%clk 00:03:55]}
{[%emt 00:00:30]} Bxf3+ {[%clk 00:00:59]} {[%emt 00:00:48]} 41. Qxf3 {[%clk
00:04:00]} {[%emt 00:00:25]} Qxf3+ {[%clk 00:01:15]} {[%emt 00:00:14]} 42. exf3
{[%clk 00:04:22]} {[%emt 00:00:08]} Rxg1+ {[%clk 00:01:40]} {[%emt 00:00:05]}
43. Rxg1 {[%clk 00:04:38]} {[%emt 00:00:13]} Rc8 {[%clk 00:02:06]} {[%emt
00:00:04]} 44. Rd1 {[%clk 00:04:22]} {[%emt 00:00:46]} Rxc4 {[%clk 00:02:16]}
45. Rxd6 {[%clk 00:04:38]} {[%emt 00:00:34]} Rxh4 {[%clk 00:01:27]} {[%emt
00:01:19]} 46. Rb6 {[%clk 00:04:57]} {[%emt 00:00:11]} Rf4 {[%clk 00:01:06]}
{[%emt 00:00:51]} 47. Rxb7 {[%clk 00:05:05]} {[%emt 00:00:22]} Rxf3 {[%clk
00:01:28]} {[%emt 00:00:08]} 48. Kg2 {[%clk 00:05:22]} {[%emt 00:00:13]} Ra3
{[%clk 00:01:44]} {[%emt 00:00:11]} 49. Rc7 {[%clk 00:05:22]} {[%emt 00:00:33]}
Kf8 {[%clk 00:01:37]} {[%emt 00:00:37]} 50. Rb7 {[%clk 00:05:24]} {[%emt
00:00:28]} Rd3 {[%clk 00:01:42]} {[%emt 00:00:23]} 51. Ra7 {[%clk 00:05:26]}
{[%emt 00:00:31]} Ke8 {[%clk 00:01:22]} {[%emt 00:00:49]} 52. Rb7 {[%clk
00:05:47]} {[%emt 00:00:10]} Rd7 {[%clk 00:01:36]} {[%emt 00:00:14]} 53. Rxd7
{[%clk 00:04:48]} {[%emt 00:01:30]} Kxd7 {[%clk 00:02:01]} {[%emt 00:00:05]} 54.
Kf3 {[%clk 00:05:13]} {[%emt 00:00:05]} Ke6 {[%clk 00:02:26]} {[%emt 00:00:05]}
55. Ke4 {[%clk 00:05:36]} {[%emt 00:00:08]} f5+ {[%clk 00:02:44]} {[%emt
00:00:12]} 56. Kf4 {[%clk 00:06:00]} {[%emt 00:00:06]} g5+ {[%clk 00:03:07]}
{[%emt 00:00:06]} 57. Kf3 {[%clk 00:06:03]} {[%emt 00:00:27]} Ke5 {[%clk
00:03:27]} {[%emt 00:00:10]} 58. Ke3 {[%clk 00:06:25]} {[%emt 00:00:08]} h5
{[%clk 00:03:47]} {[%emt 00:00:10]} 59. Kf3 {[%clk 00:06:28]} {[%emt 00:00:27]}
g4+ {[%clk 00:04:00]} {[%emt 00:00:17]} 60. Kg3 {[%clk 00:06:41]} {[%emt
00:00:17]} f4+ {[%clk 00:04:05]} {[%emt 00:00:24]} 61. Kf2 {[%clk 00:07:03]}
{[%emt 00:00:09]} Ke4 {[%clk 00:04:25]} {[%emt 00:00:10]} 62. Ke2 {[%clk
00:06:43]} {[%emt 00:00:50]} h4 {[%clk 00:04:45]} {[%emt 00:00:10]} 63. Kf2
{[%clk 00:06:39]} {[%emt 00:00:34]} g3+ {[%clk 00:04:33]} {[%emt 00:00:42]} 64.
hxg3 {[%clk 00:06:57]} {[%emt 00:00:12]} hxg3+ {[%clk 00:04:54]} {[%emt
00:00:08]} 65. Ke1 {[%clk 00:05:43]} {[%emt 00:01:44]} Ke3 {[%clk 00:05:19]}
{[%emt 00:00:06]} 66. Kf1 {[%clk 00:06:09]} {[%emt 00:00:05]} f3 {[%clk
00:05:34]} {[%emt 00:00:14]} 67. Kg1 {[%clk 00:06:24]} {[%emt 00:00:16]} Ke2
{[%clk 00:05:57]} {[%emt 00:00:08]} 68. Kh1 {[%clk 00:06:43]} {[%emt 00:00:10]}
f2 {[%clk 00:06:21]} {[%emt 00:00:05]} 69. Kg2 {[%clk 00:07:03]} {[%emt
00:00:11]} f1=Q {[%clk 00:06:41]} {[%emt 00:00:10]} 70. Kxg3 {[%clk 00:07:28]}
{[%emt 00:00:04]} Qf5 {[%clk 00:07:04]} {[%emt 00:00:08]} 71. Kg2 {[%clk
00:07:48]} {[%emt 00:00:11]} Qg5 {[%clk 00:07:29]} {[%emt 00:00:05]} 72. Kh3
{[%clk 00:08:02]} {[%emt 00:00:16]} Kf3 {[%clk 00:07:51]} {[%emt 00:00:08]} 0-1

[Event "6e festival d'échecs d'Allauch"]
[Site "Allauch, France"]
[Date "2024.08.31"]
[Round "9.8"]
[White "Siguret, William"]
[Black "Arlot, Bastien"]
[Result "1-0"]
[TimeControl "1 h 30 min (+30s/coup)"]
[WhiteElo "1671"]
[BlackElo "1557"]

1. Nf3 {[%clk 01:30:59]} {[%emt 00:00:01]} d5 {[%clk 01:30:58]} {[%emt
00:00:03]} 2. g3 {[%clk 01:31:15]} {[%emt 00:00:14]} Nf6 {[%clk 01:30:15]}
{[%emt 00:01:13]} 3. Bg2 {[%clk 01:31:38]} {[%emt 00:00:07]} Nc6 {[%clk
01:25:29]} {[%emt 00:05:16]} 4. O-O {[%clk 01:31:58]} {[%emt 00:00:10]} e5
{[%clk 01:24:37]} {[%emt 00:01:21]} 5. d3 {[%clk 01:31:46]} {[%emt 00:00:41]}
Bg4 {[%clk 01:22:07]} {[%emt 00:03:00]} 6. Nbd2 {[%clk 01:31:40]} {[%emt
00:00:36]} Qd7 {[%clk 01:21:32]} {[%emt 00:01:06]} 7. e4 {[%clk 01:29:49]}
{[%emt 00:02:21]} d4 {[%clk 01:20:01]} {[%emt 00:02:01]} 8. Nc4 {[%emt
00:14:48]} Qe6 {[%clk 01:07:51]} 9. Qe1 {[%clk 01:24:39]} {[%emt 00:04:01]} h6
{[%clk 01:04:49]} {[%emt 00:03:33]} 10. a3 {[%clk 01:22:23]} {[%emt 00:02:45]}
Nd7 {[%emt 00:02:46]} 11. c3 {[%clk 01:20:30]} {[%emt 00:02:21]} Bh3 {[%clk
00:57:00]} {[%emt 00:06:05]} 12. Nh4 {[%clk 01:17:24]} {[%emt 00:03:37]} Bxg2
{[%clk 00:56:13]} {[%emt 00:01:17]} 13. Nxg2 {[%clk 01:16:34]} {[%emt
00:01:20]} Nc5 {[%clk 00:49:51]} {[%emt 00:06:52]} 14. Qd1 {[%clk 01:15:20]}
{[%emt 00:01:44]} O-O-O {[%clk 00:42:18]} {[%emt 00:08:03]} 15. b4 {[%clk
01:15:33]} {[%emt 00:00:16]} Nxe4 {[%clk 00:42:08]} {[%emt 00:00:40]} 16. cxd4
{[%clk 01:11:27]} {[%emt 00:04:36]} Rxd4 {[%clk 00:30:03]} {[%emt 00:12:34]} 17.
Be3 {[%clk 01:09:04]} {[%emt 00:02:53]} Rd5 {[%clk 00:28:57]} {[%emt 00:01:36]}
18. f4 {[%clk 01:08:44]} {[%emt 00:00:51]} f6 {[%clk 00:25:16]} {[%emt
00:04:10]} 19. Qc2 {[%clk 00:59:52]} {[%emt 00:09:20]} Nd6 {[%clk 00:23:53]}
{[%emt 00:01:54]} 20. fxe5 {[%clk 00:50:36]} {[%emt 00:09:46]} fxe5 {[%clk
00:22:31]} {[%emt 00:01:52]} 21. Rae1 {[%clk 00:48:02]} {[%emt 00:03:04]} Be7
{[%emt 00:03:38]} 22. Bf4 {[%clk 00:45:46]} {[%emt 00:02:44]} Nxc4 {[%clk
00:15:08]} {[%emt 00:04:47]} 23. Qxc4 {[%clk 00:44:31]} {[%emt 00:01:44]} Rhd8
{[%clk 00:15:23]} {[%emt 00:00:16]} 24. Rf3 {[%clk 00:37:12]} {[%emt 00:07:49]}
Qg6 {[%clk 00:12:59]} {[%emt 00:02:52]} 25. Rd1 {[%clk 00:28:41]} {[%emt
00:09:02]} e4 {[%clk 00:10:59]} {[%emt 00:02:30]} 26. Re3 {[%clk 00:26:28]}
{[%emt 00:02:44]} Rxd3 {[%clk 00:08:25]} {[%emt 00:03:04]} 27. Rdxd3 {[%clk
00:25:22]} {[%emt 00:01:35]} exd3 {[%clk 00:08:10]} {[%emt 00:00:44]} 28. Rxe7
{[%clk 00:25:14]} {[%emt 00:00:39]} Rd7 {[%clk 00:05:22]} {[%emt 00:03:19]} 29.
Rxd7 {[%clk 00:24:04]} {[%emt 00:01:40]} Kxd7 {[%clk 00:05:49]} {[%emt
00:00:03]} 30. Ne1 {[%clk 00:22:15]} {[%emt 00:02:18]} d2 {[%clk 00:03:42]}
{[%emt 00:02:37]} 31. Bxd2 {[%clk 00:20:27]} {[%emt 00:02:18]} Qe8 {[%clk
00:02:13]} {[%emt 00:01:59]} 32. Kg2 {[%clk 00:18:01]} {[%emt 00:02:52]} a6
{[%clk 00:02:04]} {[%emt 00:00:43]} 33. Nf3 {[%clk 00:18:11]} {[%emt 00:00:20]}
b5 {[%clk 00:01:54]} {[%emt 00:00:41]} 34. Qg4+ {[%clk 00:17:55]} {[%emt
00:00:44]} Kd8 {[%clk 00:01:09]} {[%emt 00:01:15]} 35. Nd4 {[%clk 00:14:30]}
{[%emt 00:03:25]} h5 {[%clk 00:00:32]} {[%emt 00:01:38]} 36. Bg5+ {[%clk
00:13:49]} {[%emt 00:01:11]} Ne7 {[%clk 00:00:45]} {[%emt 00:00:17]} 37. Bxe7+
{[%clk 00:11:23]} {[%emt 00:02:56]} Kxe7 {[%clk 00:00:56]} {[%emt 00:00:20]} 38.
Qe6+ {[%clk 00:11:12]} {[%emt 00:00:40]} Kf8 {[%clk 00:01:07]} {[%emt
00:00:19]} 39. Qxe8+ {[%clk 00:10:57]} {[%emt 00:00:44]} Kxe8 {[%clk 00:01:34]}
{[%emt 00:00:04]} 40. Ne6 {[%clk 00:11:08]} {[%emt 00:00:19]} Kd7 {[%clk
00:01:20]} {[%emt 00:00:44]} 41. Nxg7 {[%emt 00:00:37]} c5 {[%clk 00:01:22]} 42.
bxc5 {[%clk 00:11:40]} {[%emt 00:00:19]} a5 {[%clk 00:01:45]} {[%emt 00:00:07]}
43. Nf5 {[%clk 00:10:54]} {[%emt 00:01:16]} Kc6 {[%clk 00:01:44]} {[%emt
00:00:31]} 44. Nd4+ {[%clk 00:08:51]} {[%emt 00:02:33]} Kxc5 {[%clk 00:01:54]}
{[%emt 00:00:21]} 45. Nb3+ {[%clk 00:09:11]} {[%emt 00:00:08]} Kb6 {[%emt
00:00:35]} 46. h3 {[%clk 00:08:54]} {[%emt 00:00:46]} a4 {[%clk 00:01:47]}
{[%emt 00:00:34]} 47. Nd2 {[%clk 00:09:13]} {[%emt 00:00:11]} Kc5 {[%emt
00:00:41]} 48. g4 {[%clk 00:09:28]} {[%emt 00:00:15]} hxg4 {[%clk 00:01:28]}
{[%emt 00:00:38]} 49. hxg4 {[%clk 00:09:52]} {[%emt 00:00:06]} Kd6 {[%clk
00:01:03]} {[%emt 00:00:55]} 50. Kf3 {[%clk 00:09:50]} {[%emt 00:00:31]} Ke5
{[%clk 00:00:45]} {[%emt 00:00:48]} 51. Ke3 {[%clk 00:09:39]} {[%emt 00:00:42]}
Kf6 {[%emt 00:00:53]} 52. Kd4 {[%clk 00:08:27]} {[%emt 00:01:32]} b4 {[%clk
00:00:38]} {[%emt 00:00:23]} 53. axb4 {[%clk 00:08:40]} {[%emt 00:00:17]} Kg5
{[%clk 00:00:42]} {[%emt 00:00:26]} 54. b5 {[%clk 00:08:57]} {[%emt 00:00:13]}
Kxg4 {[%clk 00:01:10]} {[%emt 00:00:03]} 55. b6 {[%clk 00:09:13]} {[%emt
00:00:11]} a3 {[%clk 00:01:38]} {[%emt 00:00:05]} 56. Nb3 {[%clk 00:09:32]}
{[%emt 00:00:11]} a2 {[%clk 00:02:03]} {[%emt 00:00:05]} 57. b7 {[%clk
00:09:55]} {[%emt 00:00:06]} 1-0